[Event "13th Dolomiti-Forni di Sopra-A 2022"]
[Site "Forni di Sopra"]
[Date "2022.06.16"]
[Round "6.1"]
[White "Moroni, Luca Jr"]
[Black "Harshavardhan G B"]
[Result "1-0"]
[ECO "E43"]
[WhiteElo "2581"]
[BlackElo "2367"]
[Annotator "TA"]
[PlyCount "109"]
[EventDate "2022.06.13"]
[EventType "swiss"]
[EventCountry "ITA"]
[SourceTitle "playchess.com"]
[Source "ChessBase"]
[SourceQuality "1"]
[TimeControl "40/5400+30:1800+30"]

{[%evp 14,109,27,19,38,24,35,-4,-9,-12,-17,-42,-35,-72,1,0,4,0,21,0,0,0,141,88,161,148,155,131,149,123,131,112,155,162,160,141,225,121,150,158,297,303,298,287,310,247,275,270,412,412,412,412,533,285,268,280,290,287,408,396,435,422,477,457,537,525,539,539,598,588,566,530,525,512,583,576,635,634,622,614,655,639,872,869,1396,1364,5188,1616,29969,29971,29948,12795,5316,1859,29990,29991,29991,29992]} 1. d4 {[%emt 0:00:05]} Nf6 {[%emt 0:00:51]} 2. c4 {[%emt 0:00:03]} e6 {[%emt 0:00:52]} 3. Nc3 {[%emt 0:00:04]} Bb4 {[%emt 0:00:59]} 4. e3 {[%emt 0:00:05]} b6 {[%emt 0:01:07]} 5. Bd3 {[%emt 0:00:14]} Bb7 {[%emt 0:00:06]} 6. Nf3 {[%emt 0:00:04]} Ne4 {[%emt 0:00:04]} 7. O-O {[%emt 0:00:34]} f5 {[%emt 0:00:05]} 8. Ne2 {[%emt 0:00:18]} Bd6 {[%emt 0:00:05] E43: Nimzo-Indian: Rubinstein: 4...b6.} 9. a3 {[%emt 0:02:54]} c5 {[%emt 0:00:28] [#]} 10. b4 $146 {[%emt 0:01:32]} ({Predecessor:} 10. dxc5 bxc5 11. Bxe4 fxe4 12. Qxd6 exf3 13. Nf4 fxg2 14. Rd1 Qe7 15. b4 Bf3 16. Rd2 Qxd6 17. Rxd6 {½-½ (40) Swiech,P (2207)-Soffer,R (2486) Krakow 2011}) 10... cxb4 {[%emt 0:07:14] The position is equal.} 11. axb4 {[%emt 0:02:20]} Bxb4 {[%emt 0:00:07]} 12. Bb2 {[%emt 0:05:14]} O-O {[%emt 0:00:07]} 13. d5 {[%emt 0:06:25]} Be7 {[%emt 0:01:57]} ({Better is} 13... Na6 $17) 14. Bxe4 {[%emt 0:24:51]} fxe4 {[%emt 0:00:05]} 15. Nd2 {[%emt 0:03:19]} (15. Qd4 $2 Bf6 16. Ne5 d6 17. Qxe4 exd5 18. cxd5 Bxe5 $19) 15... exd5 {[%emt 0:03:46]} 16. cxd5 {[%emt 0:00:41]} Bxd5 {[%emt 0:01:05]} 17. Nf4 $40 {[%emt 0:00:23][%mdl 128] White has some attack.} Rxf4 {[%emt 0:13:57]} 18. exf4 $16 {[%emt 0:03:00][%cal Od2e4] Strongly threatening Nxe4!} Bf6 {[%emt 0:00:28]} (18... Qf8 $16) 19. Bxf6 $18 {[%emt 0:02:14]} Qxf6 {[%emt 0:00:05] [#]} 20. Re1 $1 {[%emt 0:05:11]} (20. Qh5 $6 Bf7 21. Qg4 h5 $16) 20... Qf5 {[%emt 0:05:01]} 21. Nf1 {[%emt 0:04:10][%mdl 1024] Threatens to win with Ne3. White has strong compensation.} Be6 {[%emt 0:12:53]} 22. Qd6 {[%emt 0:14:43][%cal Oa1a7] aiming for Rxa7!} (22. Ng3 $6 Qxf4 23. Qd4 (23. Rxe4 Qf6 $16) (23. Nxe4 Nc6 $14) 23... Qf8 $14) 22... Qd5 {[%emt 0:06:14] [#]} 23. Qc7 {[%emt 0:03:02] White is more active.} (23. Qe7 $6 Nc6 24. Qh4 Rf8 $11) 23... Nc6 {[%emt 0:00:52]} 24. Rad1 {[%emt 0:02:44]} Nd4 {[%emt 0:10:38]} (24... Qc5 $16 25. Ng3 (25. Rxe4 a5 $14) 25... Nb4) 25. Ng3 {[%emt 0:03:37]} (25. f5 $18 Bxf5 26. Ne3) 25... Qc5 {[%emt 0:00:16]} 26. Qb7 {[%emt 0:02:30]} Qc6 {[%emt 0:06:06]} (26... Rf8 $16 {keeps fighting.} 27. Nxe4 (27. Qxe4 Nf5 $16) 27... Qc6 28. Qxc6 (28. Qxa7 Nc2 $14) 28... Nxc6) 27. Qxc6 {[%emt 0:00:36][%mdl 64] Deflection} Nxc6 {[%emt 0:00:04]} 28. f5 {[%emt 0:00:09]} ({Inferior is} 28. Rxe4 a5 $11) 28... Bf7 {[%emt 0:00:05]} 29. Nxe4 {[%emt 0:01:36]} ({Not} 29. Rxe4 a5 $11) 29... d5 {[%emt 0:09:01]} 30. Ng5 {[%emt 0:00:27]} d4 {[%emt 0:00:04]} (30... Rc8 $142 31. Nxf7 Kxf7 32. Rxd5 Rc7) 31. Nxf7 {[%emt 0:02:31]} Kxf7 {[%emt 0:00:04][%mdl 4096] Endgame KRR-KRN} 32. Rc1 {[%emt 0:00:03]} Nb4 {[%emt 0:02:01]} 33. Rc4 {[%emt 0:00:38]} Nd3 {[%emt 0:00:05]} 34. Rd1 {[%emt 0:01:36]} Nc5 {[%emt 0:01:50]} 35. Rcxd4 {[%emt 0:00:05]} ({Don't do} 35. Rdxd4 $6 a5 36. Rd6 Rb8 $18) 35... a5 {[%emt 0:01:28]} (35... Re8 {was worth a try.} 36. g4 Re7) 36. Rd6 {[%emt 0:02:57]} Rb8 {[%emt 0:00:29]} 37. Rb1 {[%emt 0:01:02]} Na4 {[%emt 0:00:04]} 38. Rb5 {[%emt 0:00:53]} Rc8 {[%emt 0:01:56] ( -> ...Rc1+)} 39. g4 {[%emt 0:00:13]} Rc4 {[%emt 0:00:04]} 40. h3 {[%emt 0:00:19]} Ke7 {[%emt 0:00:04]} 41. Rbd5 {[%emt 0:31:55] Re6+ is the strong threat.} Rc7 {[%emt 0:30:59]} 42. Re6+ {[%emt 0:01:23]} Kf7 {[%emt 0:00:06]} 43. Rb5 {[%emt 0:01:00]} g6 {[%emt 0:00:34]} 44. Kg2 {[%emt 0:00:00]} gxf5 {[%emt 0:00:00]} 45. gxf5 {[%emt 0:00:00]} Rc4 {[%emt 0:00:00]} 46. Kg3 {[%emt 0:00:00]} Rd4 {[%emt 0:00:00]} 47. Rc6 {[%emt 0:00:00] Inhibits Rc4.} h5 {[%emt 0:00:00]} 48. f4 {[%emt 0:00:00]} Rd3+ {[%emt 0:00:00]} 49. Kh4 {[%emt 0:00:00]} Rf3 {[%emt 0:00:00]} 50. Rc4 {[%emt 0:00:00]} (50. Rc7+ $142 Kf6 51. Rc6+ Kf7 52. Rc4) 50... Ra3 {[%emt 0:00:00]} 51. Rc7+ {[%emt 0:00:00]} Kf6 {[%emt 0:00:00]} 52. Rc6+ {[%emt 0:00:00]} Kf7 {[%emt 0:00:00]} 53. Rd5 {[%emt 0:00:00] Threatening mate with Rd7+.} Rf3 {[%emt 0:00:00]} 54. Rd7+ {[%emt 0:00:00]} Ke8 {[%emt 0:00:00]} 55. Ra7 {[%emt 0:10:20] Weighted Error Value: White=0.14 (very precise) /Black=0.78} 1-0

[Event "13th Dolomiti-Forni di Sopra-A 2022"]
[Site "Forni di Sopra"]
[Date "2022.06.16"]
[Round "6.2"]
[White "Basso, Pier Luigi"]
[Black "Bellia, Fabrizio"]
[Result "1-0"]
[ECO "D37"]
[WhiteElo "2570"]
[BlackElo "2418"]
[Annotator "TA"]
[PlyCount "89"]
[EventDate "2022.06.13"]
[EventType "swiss"]
[EventCountry "ITA"]
[SourceTitle "playchess.com"]
[Source "ChessBase"]
[SourceQuality "1"]
[TimeControl "40/5400+30:1800+30"]

{[%evp 17,89,20,17,6,20,20,16,9,27,35,33,24,62,57,59,36,35,38,42,39,39,14,29,32,45,45,58,56,72,71,59,57,54,54,71,14,33,33,41,41,41,41,95,28,178,106,167,178,206,209,389,379,367,230,568,552,1040,1053,1050,866,1722,1647,1628,1363,2136,1869,5947,5947,5947,5947,5688,5688,4770,452]} 1. d4 {[%emt 0:14:52]} d5 {[%emt 0:00:11]} 2. c4 {[%emt 0:00:05]} e6 {[%emt 0:00:05]} 3. Nf3 {[%emt 0:00:07]} Nf6 {[%emt 0:00:06]} 4. Nc3 {[%emt 0:00:07]} Be7 {[%emt 0:00:17]} 5. Bf4 {[%emt 0:00:07]} O-O {[%emt 0:00:09]} 6. e3 {[%emt 0:00:03]} b6 {[%emt 0:00:32]} 7. cxd5 {[%emt 0:06:51]} Nxd5 {[%emt 0:00:10]} 8. Nxd5 {[%emt 0:00:06]} exd5 {[%emt 0:00:05]} 9. Bd3 {[%emt 0:00:18]} c5 {[%emt 0:00:49]} 10. Ne5 {[%emt 0:00:08] D37: Queen's Gambit Declined: 5 Bf4.} cxd4 {[%emt 0:16:37]} 11. exd4 {[%emt 1:13:16]} ({Of course not} 11. Qh5 g6 12. Qe2 (12. Qh6 Bf6 $17) 12... Bb4+ 13. Kf1 dxe3 14. Qxe3 Bc5 $17) 11... Bb4+ {[%emt 0:00:48]} 12. Kf1 {[%emt 0:00:00] The position is equal.} Qf6 {[%emt 0:07:02] [#]} 13. g3 $146 {[%emt 0:00:00]} ({Predecessor:} 13. Qh5 h6 14. g3 Nc6 15. Nxc6 Qxc6 16. Kg2 Rd8 17. a3 Bf8 18. Rac1 Qa4 19. Bc7 Re8 20. Be5 Bd7 21. Rc7 Rac8 22. b3 {1-0 (22) Jones,G (2593)-Illner,A (2345) Caleta 2011}) 13... Bd6 {[%emt 0:10:45]} 14. Kg2 {[%emt 0:00:00] Prevents Bh3+.} Bxe5 {[%emt 0:07:02]} 15. Qh5 {[%emt 0:00:00][%csl Gd3][%cal Rh5h7]} g6 {[%emt 0:01:51]} 16. Qxe5 {[%emt 0:00:00]} (16. Bxe5 {looks sharper.} Qxf2+ 17. Kxf2 gxh5 18. Rhc1) 16... Qxe5 {[%emt 0:00:35]} 17. dxe5 {[%emt 0:00:00]} Bb7 {[%emt 0:07:53]} 18. h4 {[%emt 0:00:00]} Nd7 {[%emt 0:01:11]} 19. b4 {[%emt 0:00:00]} Rfc8 {[%emt 0:03:07]} 20. Rhc1 {[%emt 0:00:00]} Nf8 {[%emt 0:00:43]} 21. Bd2 {[%emt 0:00:00]} Ne6 {[%emt 0:02:32]} 22. g4 {[%emt 0:00:00]} Rxc1 {[%emt 0:03:58]} 23. Rxc1 {[%emt 0:00:00]} Rc8 {[%emt 0:00:15]} 24. f4 {[%emt 0:00:00]} Rxc1 $1 {[%emt 0:01:22]} 25. Bxc1 $14 {[%emt 0:00:00][%mdl 4096] Endgame KBB-KBN} Ng7 {[%emt 0:00:11]} 26. b5 {[%emt 0:00:00] White is more active.} (26. f5 $16) 26... Bc8 {[%emt 0:00:38]} 27. Kf3 {[%emt 0:00:00]} h5 {[%emt 0:01:11]} 28. gxh5 {[%emt 0:00:00]} gxh5 {[%emt 0:03:30]} 29. Ba3 {[%emt 0:00:00]} Bg4+ {[%emt 0:19:28]} (29... Nf5 $1 $14) 30. Kf2 {[%emt 0:00:00]} (30. Ke3 $1 $16) 30... Bf5 {[%emt 0:04:50] Black is now going downhill.} (30... Nf5 $11) 31. Bf1 {[%emt 0:00:00]} ({White should try} 31. Bxf5 $18 Nxf5 32. Bd6) 31... Ne6 {[%emt 0:04:53] [#]} (31... Bc2 $16) 32. Bd6 $1 $18 {[%emt 0:00:00] And now Bb8 would win.} Nxf4 {[%emt 0:00:33] [#]} 33. Bb8 $1 {[%emt 0:00:00]} Nd3+ $2 {[%emt 0:01:06]} (33... d4 34. Bxa7 Nd5) 34. Ke3 {[%emt 0:00:00]} Nc5 {[%emt 0:00:13]} 35. Bxa7 {[%emt 0:00:00]} Nd7 {[%emt 0:00:44]} (35... Na4 {is tougher.} 36. Kd4 Bd7) 36. Kd4 {[%emt 0:00:00] White is clearly winning.} Be6 {[%emt 0:00:40]} 37. a4 {[%emt 0:00:00]} Kg7 {[%emt 0:00:44]} 38. Bg2 {[%emt 0:00:00]} f6 {[%emt 0:00:48]} 39. exf6+ {[%emt 0:00:00]} Kxf6 {[%emt 0:00:05]} 40. Bxd5 {[%emt 0:00:00]} Ke7 {[%emt 0:00:22]} 41. Bc6 {[%emt 0:18:23]} Bb3 {[%emt 0:07:45]} 42. a5 {[%emt 0:00:00]} bxa5 {[%emt 0:00:12]} 43. b6 {[%emt 0:00:00]} Nxb6 {[%emt 0:03:18]} 44. Bxb6 {[%emt 0:00:00]} a4 {[%emt 0:00:08]} 45. Ke4 {[%emt 0:28:37] Weighted Error Value: White=0.18 (very precise) /Black=0.40} (45. Bc5+ $142 Kf6 46. Be8) 1-0

[Event "13th Dolomiti-Forni di Sopra-A 2022"]
[Site "Forni di Sopra"]
[Date "2022.06.16"]
[Round "6.3"]
[White "Prraneeth Vuppala"]
[Black "Dardha, Daniel"]
[Result "1/2-1/2"]
[ECO "C41"]
[WhiteElo "2447"]
[BlackElo "2561"]
[Annotator "TA"]
[PlyCount "147"]
[EventDate "2022.06.13"]
[EventType "swiss"]
[EventCountry "ITA"]
[SourceTitle "playchess.com"]
[Source "ChessBase"]
[SourceQuality "1"]
[TimeControl "40/5400+30:1800+30"]

{[%evp 14,147,39,36,38,35,28,31,31,31,66,29,48,37,53,0,0,0,0,-25,0,-11,-2,-26,0,-8,0,0,0,0,17,21,19,11,31,14,12,-4,0,-32,8,11,11,11,10,12,10,10,10,10,9,7,9,8,7,3,10,0,39,27,50,0,0,0,12,14,31,15,66,24,25,24,38,38,37,37,171,154,237,236,235,243,249,198,221,217,197,218,229,230,238,221,198,193,168,182,251,225,1025,1020,29961,29962,29961,29964,29963,29966,29964,29965,29965,29966,29967,29969,29968,29964,29962,29963,8502,0,0,0,0,0,0,0,0,0,0,0,0,0,0,0,0,0,0,0]} 1. e4 {[%emt 0:00:06]} d6 {[%emt 0:16:31]} 2. d4 {[%emt 0:00:45]} Nf6 {[%emt 0:00:05]} 3. Nc3 {[%emt 0:00:35]} e5 {[%emt 0:00:07]} 4. Nf3 {[%emt 0:01:00]} Nbd7 {[%emt 0:00:07]} 5. Bc4 {[%emt 0:01:01]} Be7 {[%emt 0:00:12]} 6. O-O {[%emt 0:00:56]} O-O {[%emt 0:00:28]} 7. Re1 {[%emt 0:00:41] 7.a4 is more fashionable.} a6 {[%emt 0:02:07]} 8. a4 {[%emt 0:01:45]} b6 {[%emt 0:00:26] C41: Philidor Defence.} 9. h3 {[%emt 0:04:52]} Bb7 {[%emt 0:00:32]} 10. d5 {[%emt 0:00:50]} Ne8 {[%emt 0:03:04] [#] White is slightly better.} 11. Be3 $146 {[%emt 0:13:17]} ({Predecessor:} 11. b4 Bc8 12. a5 b5 13. Bd3 g6 14. Ne2 Ng7 15. c4 bxc4 16. Bxc4 f5 17. Nc3 {½-½ (34) Anand,V (2779)-Jobava,B (2702) Doha 2016}) 11... g6 {[%emt 0:01:04]} 12. Qd2 {[%emt 0:10:40] White is much more active.} Ng7 {[%emt 0:02:59]} 13. Bh6 {[%emt 0:03:32]} Kh8 {[%emt 0:00:59]} 14. Ng5 {[%emt 0:07:30]} ({White should try} 14. Rad1 $14) 14... Nf6 $1 $11 {[%emt 0:02:57]} 15. f4 {[%emt 0:05:41]} Ng8 {[%emt 0:01:46]} 16. Bxg7+ {[%emt 0:01:04]} Kxg7 {[%emt 0:00:06]} 17. Nf3 {[%emt 0:01:08]} exf4 {[%emt 0:00:17]} 18. Ne2 {[%emt 0:08:26]} Nf6 {[%emt 0:05:42]} 19. Nxf4 {[%emt 0:00:56]} Nd7 {[%emt 0:00:32]} 20. Nd3 {[%emt 0:13:19]} Bf6 {[%emt 0:03:19]} 21. Re2 {[%emt 0:00:58]} Re8 {[%emt 0:06:38]} 22. Rf1 {[%emt 0:00:37]} Rf8 {[%emt 0:05:06]} 23. Qf4 {[%emt 0:06:38]} Re8 {[%emt 0:12:32][%cal Ob6b5]} 24. g4 {[%emt 0:07:57] With the idea g5.} Kg8 {[%emt 0:02:52]} 25. g5 {[%emt 0:05:44]} Bg7 {[%emt 0:00:10]} 26. e5 {[%emt 0:01:19]} dxe5 {[%emt 0:08:21]} (26... b5 {with more complications.} 27. Ba2 Nb6 28. Nd4 Kh8) 27. Nfxe5 {[%emt 0:00:15]} (27. Ndxe5 {is more complex.} Nxe5 28. Nxe5 Bxd5 29. Nxf7 Qd7 30. Rd2) 27... Nxe5 {[%emt 0:00:10]} (27... Bxe5 {keeps more tension.} 28. Nxe5 Nxe5 29. Rxe5 Rxe5 30. Qxe5 Qd6) 28. Nxe5 {[%emt 0:00:19]} Bxe5 {[%emt 0:21:20]} 29. Rxe5 {[%emt 0:00:08]} Rxe5 {[%emt 0:00:02]} 30. Qxe5 {[%emt 0:00:13]} Qd6 {[%emt 0:00:04]} 31. Qxd6 {[%emt 0:01:06]} cxd6 {[%emt 0:00:01][%mdl 4096] Endgame KRB-KRB} 32. Rf6 {[%emt 0:01:44]} Rd8 {[%emt 0:00:15]} 33. h4 {[%emt 0:01:12]} Kf8 {[%emt 0:00:20]} 34. Kf2 {[%emt 0:00:15]} Ke7 {[%emt 0:01:54]} 35. Rf4 {[%emt 0:00:40]} Rc8 {[%emt 0:00:07][%cal Oh7h6]} 36. Ke3 {[%emt 0:00:23]} h6 {[%emt 0:01:09]} 37. Bb3 {[%emt 0:00:48]} (37. Re4+ $14 Kd7 38. Rf4 (38. gxh6 Rh8 $14)) 37... hxg5 {[%emt 0:01:54]} 38. hxg5 {[%emt 0:00:03]} a5 {[%emt 0:00:21] Against Rb4} 39. Rh4 {[%emt 0:00:12]} Kf8 {[%emt 0:01:37]} 40. Kd4 {[%emt 0:00:23]} Re8 {[%emt 0:01:05]} (40... Ba6 $11) 41. Rh8+ {[%emt 0:12:21]} (41. Bc4 $5 {[%cal Rh4h3]}) 41... Ke7 {[%emt 0:00:02]} 42. Rh7 {[%emt 0:00:09]} Bc8 {[%emt 0:03:34]} 43. Bc4 {[%emt 0:02:34][%cal Ob2b4]} Bf5 {[%emt 0:02:21]} 44. Bb5 {[%emt 0:06:47]} Rc8 {[%emt 0:01:45]} (44... Rf8 $1 $14) 45. c3 $18 {[%emt 0:01:20]} Kf8 {[%emt 0:01:01]} (45... Bg4 $16 46. Rh4 Bf5) 46. Bc6 $1 {[%emt 0:01:55]} Kg8 {[%emt 0:05:42]} 47. Rh1 {[%emt 0:05:09]} Kg7 {[%emt 0:05:05]} 48. Re1 {[%emt 0:01:25] Hoping for Kc4.} Bc2 {[%emt 0:03:09]} 49. b4 {[%emt 0:01:38]} Rh8 {[%emt 0:01:09] [#]} 50. Kc4 $1 {[%emt 0:00:36]} Rh3 {[%emt 0:00:56] [#]} 51. Kb5 $1 {[%emt 0:01:09][%csl LRa5,LRb6]} Rxc3 {[%emt 0:00:23]} 52. bxa5 {[%emt 0:00:08]} Rb3+ {[%emt 0:03:04]} 53. Ka6 {[%emt 0:00:01]} bxa5 {[%emt 0:00:16]} 54. Kxa5 {[%emt 0:00:11]} Rd3 {[%emt 0:03:58]} (54... f5 $142) 55. Ra1 {[%emt 0:02:01] aiming for Kb6.} Bb3 $2 {[%emt 0:03:35]} (55... Rb3 56. Re1 f5) 56. Kb6 {[%emt 0:00:30]} Bxd5 {[%emt 0:00:18]} 57. Bxd5 {[%emt 0:00:34]} Rxd5 {[%emt 0:00:02] KR-KR} 58. a5 {[%emt 0:00:21]} Rxg5 {[%emt 0:01:57]} 59. a6 {[%emt 0:00:08]} Rh5 {[%emt 0:00:03]} 60. a7 {[%emt 0:00:24]} Rh8 {[%emt 0:00:03]} 61. a8=Q {[%emt 0:02:41]} Rxa8 {[%emt 0:00:09]} 62. Rxa8 {[%emt 0:00:00] KR-K3P} Kf6 {[%emt 0:00:06]} 63. Kc6 {[%emt 0:00:00]} Ke5 {[%emt 0:00:29]} 64. Re8+ {[%emt 0:00:49]} Kf4 {[%emt 0:04:05]} 65. Re1 $2 {[%emt 0:00:35]} (65. Kd5 $18 {Threatening mate with Kd4.} g5 66. Kd4 (66. Kxd6 g4 $11)) 65... g5 $1 $11 {[%emt 0:00:00] The position is equal.} 66. Rf1+ {[%emt 0:00:18]} Ke3 {[%emt 0:00:00]} 67. Rg1 {[%emt 0:00:45]} f5 {[%emt 0:00:00]} 68. Kxd6 {[%emt 0:00:28] KR-KPP} f4 {[%emt 0:00:00]} 69. Ke5 {[%emt 0:00:28]} f3 {[%emt 0:00:00]} 70. Rg3 {[%emt 0:00:27]} Ke2 {[%emt 0:00:00]} 71. Rxg5 {[%emt 0:00:10]} f2 {[%emt 0:00:00]} 72. Rf5 {[%emt 0:00:03]} f1=Q {[%emt 0:00:05]} 73. Rxf1 {[%emt 0:00:04]} Kxf1 {[%emt 0:00:03]} 74. Ke4 {[%emt 0:02:23] Black defended with fortune.  Weighted Error Value: White=0.08 (flawless) /Black=0.30} 1/2-1/2

[Event "13th Dolomiti-Forni di Sopra-A 2022"]
[Site "Forni di Sopra"]
[Date "2022.06.16"]
[Round "6.4"]
[White "Bernadskiy, Vitaliy"]
[Black "Karttunen, Mika"]
[Result "1-0"]
[ECO "D38"]
[WhiteElo "2636"]
[BlackElo "2488"]
[Annotator "TA"]
[PlyCount "67"]
[EventDate "2022.06.13"]
[EventType "swiss"]
[EventCountry "ITA"]
[SourceTitle "playchess.com"]
[Source "ChessBase"]
[SourceQuality "1"]
[TimeControl "40/5400+30:1800+30"]

{[%evp 12,66,0,24,0,-13,-21,-41,-18,-10,-3,-1,0,0,8,8,22,0,0,0,11,16,42,52,37,51,81,97,91,112,163,162,178,98,191,175,347,324,589,580,706,719,712,700,685,663,487,402,29990,29991,29993,29994,29996,29997,29997,29998,29999]} 1. d4 {[%emt 0:15:17]} Nf6 {[%emt 0:00:08]} 2. c4 {[%emt 0:00:05]} e6 {[%emt 0:00:09]} 3. Nc3 {[%emt 0:01:31]} d5 {[%emt 0:00:12]} 4. Nf3 {[%emt 0:00:42]} Bb4 {[%emt 0:00:24]} 5. Qa4+ {[%emt 0:05:30]} Nc6 {[%emt 0:00:09]} 6. a3 {[%emt 0:00:03]} Bxc3+ {[%emt 0:03:34]} 7. bxc3 {[%emt 0:02:58]} O-O {[%emt 0:00:24] D38: Queen's Gambit Declined: Ragozin Defence (4 Nf3 Bb4).} 8. Bf4 {[%emt 0:03:18]} Bd7 {[%emt 0:04:42][%cal Oc6d4]} 9. Qc2 {[%emt 0:02:56]} Na5 {[%emt 0:02:23] Black is slightly better.} 10. cxd5 {[%emt 0:01:08]} exd5 {[%emt 0:00:19][%cal Oc7c5]} 11. e3 {[%emt 0:00:22] [#]} Re8 $146 {[%emt 0:08:06][%cal Oc7c5]} ({Predecessor:} 11... Qe8 12. Rb1 Ba4 13. Qf5 Qc8 14. Qxc8 Raxc8 15. Bd3 c5 16. dxc5 Ne4 17. Bxe4 dxe4 {1-0 (26) Alavkin,A (2373)-Kejzar,P (2031) Chess.com INT 2022}) 12. Bd3 {[%emt 0:00:05]} Rc8 {[%emt 0:08:03]} 13. Ne5 {[%emt 0:00:25]} Be6 {[%emt 0:02:22]} 14. O-O {[%emt 0:01:29]} h6 {[%emt 0:08:03] Prevents Bg5.} 15. Bg3 {[%emt 0:01:22]} c5 {[%emt 0:08:42]} 16. f4 {[%emt 0:00:13][%cal Bf2f4,Bf4f5,Bf5f6][%mdl 32]} cxd4 {[%emt 0:11:44]} 17. exd4 {[%emt 0:00:21]} Ne4 {[%emt 0:00:43]} 18. f5 {[%emt 0:00:44]} Bd7 {[%emt 0:00:36]} 19. Bxe4 {[%emt 0:02:30]} dxe4 {[%emt 0:00:05]} 20. Qa2 $36 {[%emt 0:04:06][%mdl 2048] White has strong initiative. White is more active.} Rf8 {[%emt 0:05:40]} (20... Rxe5 $16 21. dxe5 (21. Bxe5 Bb5 $16) 21... Bb5) 21. f6 $1 $18 {[%emt 0:00:33] Hoping for fxg7.} Be6 {[%emt 0:00:32]} (21... gxf6 $2 22. Bh4 Qc7 23. Bxf6 $18) 22. Qb2 {[%emt 0:06:32]} (22. Qe2 $1 $18 {[%cal Re2h5]}) 22... g5 {[%emt 0:09:32]} (22... gxf6 $2 23. Qd2 (23. Bh4 Qb6 $16) 23... Kh7 24. Bh4 $18) (22... Nc4 $16 {was called for.} 23. Qxb7 Qd5 24. Qxa7 Ra8) 23. h4 {[%emt 0:04:13] Black must now prevent hxg5.} gxh4 {[%emt 0:15:49]} (23... Nc4 24. Qe2 (24. Qxb7 Qa5 $14) 24... Kh7 25. Qxe4+ Kh8 26. Nxc4 (26. Qxb7 Nxe5 27. Bxe5 Rg8 $16) 26... Bxc4) 24. Bh2 {[%emt 0:00:11]} (24. Bxh4 Kh7 $14) 24... Kh7 $2 {[%emt 0:01:29]} (24... h3 25. Qe2 (25. Qd2 Kh7 $17) 25... Nc4 26. Nxc4 (26. Qxe4 Qd5 $17) 26... Qd5) 25. Qe2 {[%emt 0:00:43]} Qd5 {[%emt 0:01:42]} 26. Bf4 {[%emt 0:02:20] White wants to mate with Qh5.} Rg8 {[%emt 0:03:48] [#]} 27. Bxh6 $1 {[%emt 0:02:36][%mdl 576] Decoy} Kxh6 {[%emt 0:01:45] [#]} 28. Qe3+ $1 {[%emt 0:00:04]} (28. Rf4 e3 29. Raf1 (29. Rxh4+ Kg5 $15) 29... Rxg2+ 30. Qxg2 Qxg2+ 31. Kxg2 h3+ 32. Kh2 e2 $16) 28... Kh5 {[%emt 0:00:43] [#]} 29. Rf4 $1 {[%emt 0:00:04][%cal Of4h4] White threatens Rxh4+! and mate.} Bg4 {[%emt 0:02:08]} (29... h3 $2 30. Qe2+ Kh6 31. Rh4+ Kg5 32. Qf2 $18) (29... Rg4 $18) 30. Raf1 {[%emt 0:00:41] White mates.} ({And not} 30. Rxg4 Rxg4 31. Nxg4 Qg5 32. Qxe4 Qxg4 $11) 30... Rg5 {[%emt 0:00:22]} 31. Rxg4 {[%emt 0:00:33][%csl Gg4][%cal Re3g5]} Rxe5 {[%emt 0:00:44]} 32. Rxh4+ {[%emt 0:00:17][%mdl 64] Deflection, Decoy} Kxh4 {[%emt 0:00:21]} 33. Qh6+ {[%emt 0:00:04]} Kg3 {[%emt 0:00:41]} 34. Qf4# {[%emt 0:00:38] Weighted Error Value: White=0.05 (flawless) /Black=0.46} 1-0